bitfinex-derivatives/quotes_SOLF0:USTF0_20241002
["timestamp","ask_amount","ask_price","bid_price","bid_amount"]
[1727908720710,0.12502,140.75,140.74,9.5131]
[1727908721107,0.12502,140.75,140.74,5.96]
[1727908721507,0.12502,140.75,140.73,3.5532]
[1727908722205,0.12502,140.75,140.71,5.96]
[1727908722406,0.12502,140.75,140.72,3.5534]
[1727908722605,0.12502,140.75,140.71,5.96]
[1727908722911,3.67792,140.75,140.71,5.96]
[1727908723510,0.12502,140.75,140.73,3.5534]
[1727908724513,0.12502,140.75,140.74,3.5531]
[1727908725815,0.12502,140.75,140.71,5.96]
[1727908726017,3.67792,140.75,140.73,3.5533]
[1727908727217,0.12502,140.75,140.73,3.5533]
[1727908727415,0.12502,140.75,140.74,3.5531]
[1727908731119,0.12502,140.81,140.73,17.05]
[1727908731319,0.12502,140.81,140.75,17.05]
[1727908731518,0.12502,140.81,140.76,9.52660884]
[1727908731717,0.12502,140.81,140.76,10.94380884]
[1727908731921,0.12502,140.81,140.76,12.31620884]
[1727908732413,0.12502,140.81,140.77,17.05]
[1727908732622,0.12502,140.81,140.8,3.5516]
[1727908732922,0.12502,140.81,140.8,5.96]
[1727908733118,0.12502,140.81,140.76,6.35620884]
[1727908733119,3.67642,140.81,140.78,3.5521]
[1727908733318,3.67642,140.81,140.77,5.96]
[1727908733519,0.12502,140.81,140.77,5.96]
[1727908733726,0.12502,140.81,140.79,3.5517]
[1727908734224,0.12502,140.81,140.8,3.5516]
[1727908735018,0.12502,140.81,140.77,5.96]
[1727908735224,0.12502,140.81,140.79,3.5518]
[1727908735630,0.12502,140.81,140.76,2.7896]
[1727908735835,3.5518,140.8,140.77,9.5123]
[1727908737235,3.5519,140.79,140.77,9.5124]
[1727908737535,0.12502,140.81,140.77,9.5124]
[1727908737933,3.5517,140.8,140.77,9.5124]
[1727908738727,0.12502,140.81,140.77,9.5124]
[1727908738929,3.5519,140.79,140.77,9.5124]
[1727908739831,3.5519,140.79,140.77,5.96]
[1727908740031,3.5523,140.78,140.74,23.01]
[1727908740332,0.12502,140.81,140.74,5.96]
[1727908740333,17.17502,140.81,140.74,5.96]
[1727908740536,17.17502,140.81,140.75,3.5527]
[1727908740735,3.5529,140.75,140.71,5.96]
[1727908741133,17.05,140.77,140.71,5.96]
[1727908741336,3.5527,140.76,140.73,3.5533]
[1727908741539,17.05,140.77,140.71,5.96]
[1727908741935,17.05,140.77,140.71,9.5138]
[1727908742437,3.5533,140.74,140.71,9.5138]
[1727908743238,3.5535,140.73,140.7,3.5541]
[1727908743546,17.05,140.73,140.69,0.12502]
[1727908744248,3.5541,140.7,140.69,0.12502]
[1727908749143,17.05,140.71,140.69,0.12502]
[1727908749144,3.5539,140.71,140.69,0.12502]
[1727908749641,3.5541,140.7,140.69,0.12502]
[1727908756337,7.3822,140.72,140.69,0.12502]
[1727908756537,3.554,140.71,140.69,0.12502]
[1727908756952,3.554,140.71,140.69,3.67932]
[1727908757335,3.5541,140.7,140.69,0.12502]
[1727908763549,7.3822,140.72,140.69,3.67942]
[1727908763550,3.5541,140.71,140.69,3.67942]
[1727908764843,17.05,140.73,140.69,3.67942]
[1727908764844,3.5536,140.73,140.69,0.12502]
[1727908765257,5.96,140.75,140.69,0.12502]
[1727908765445,5.96,140.75,140.69,3.67932]
[1727908765446,23.01,140.75,140.69,3.67932]
[1727908765763,23.01,140.75,140.69,0.12502]
[1727908765764,17.05,140.71,140.69,0.12502]
[1727908766147,3.5541,140.7,140.69,0.12502]
[1727908772263,5.96,140.71,140.69,0.12502]
[1727908773268,3.5541,140.7,140.69,0.12502]
[1727908777558,14.4741,140.7,140.69,0.12502]
[1727908788788,5.94,140.73,140.69,11.04502]
[1727908788985,12.2843,140.76,140.72,3.5535]
[1727908789287,10.92,140.76,140.72,14.4735]
[1727908789473,3.553,140.75,140.72,10.92]
[1727908789780,5.94,140.78,140.74,10.92]
[1727908789979,3.5524,140.77,140.74,10.92]
[1727908790179,5.94,140.78,140.75,3.5528]
[1727908790379,13.6888,140.8,140.75,14.4728]
[1727908790580,3.5523,140.78,140.75,14.4728]
[1727908791691,3.5524,140.77,140.74,3.553]
[1727908794988,19.8288,140.8,140.72,5.94]
[1727908795185,17.06,140.78,140.72,5.94]
[1727908797083,3.5529,140.75,140.72,9.4935]
[1727908802791,2.7688,140.8,140.72,5.94]
[1727908802986,17.06,140.79,140.72,5.94]
[1727908803187,17.06,140.75,140.69,0.12502]
[1727908803394,3.5541,140.7,140.69,0.12502]
[1727908803591,17.06,140.73,140.69,0.12502]
[1727908804305,23.0,140.73,140.69,0.12502]
[1727908804803,5.94,140.73,140.69,0.12502]
[1727908805308,3.5541,140.7,140.69,0.12502]
[1727908806584,17.06,140.72,140.69,0.12502]
[1727908806585,3.554,140.71,140.69,0.12502]
[1727908806787,1.3324,140.78,140.69,0.12502]
[1727908806788,23.0,140.76,140.69,0.12502]
[1727908806990,23.0,140.76,140.69,6.06502]
[1727908807194,5.94,140.76,140.69,23.12502]
[1727908807396,19.6858,140.78,140.69,23.12502]
[1727908807600,19.6858,140.78,140.7,7.13612169]
[1727908807800,3.553,140.75,140.72,3.5536]
[1727908809900,17.06,140.76,140.69,6.06502]
[1727908810293,17.06,140.76,140.71,3.5539]
[1727908810494,17.06,140.76,140.7,7.1459853]
[1727908810692,17.06,140.76,140.69,6.06502]
[1727908810891,3.5531,140.75,140.72,3.5536]
[1727908811295,17.06,140.76,140.72,3.5536]
[1727908811507,3.5532,140.74,140.72,3.5536]
[1727908813823,3.5532,140.74,140.69,23.12502]
[1727908814005,3.5536,140.73,140.7,7.14702504]
[1727908814603,3.5536,140.73,140.7,10.70102504]
[1727908815801,3.5536,140.73,140.69,23.12502]
[1727908815989,3.5536,140.73,140.71,3.5538]
[1727908817004,19.6858,140.78,140.7,7.14630786]
[1727908817198,19.6858,140.78,140.69,6.06502]
[1727908817199,17.06,140.76,140.69,6.06502]
[1727908817603,19.6858,140.78,140.69,23.12502]
[1727908817807,19.6858,140.78,140.71,17.06]
[1727908817808,2.6258,140.78,140.71,17.06]
[1727908818111,3.5529,140.75,140.71,17.06]
[1727908818409,17.06,140.75,140.69,0.12502]
[1727908818611,3.5541,140.7,140.69,0.12502]
[1727908819701,23.0,140.76,140.69,0.12502]
[1727908820208,3.5539,140.71,140.69,3.67932]
[1727908821500,3.5533,140.74,140.71,3.5538]
[1727908823109,3.5535,140.73,140.71,3.5538]
[1727908823707,3.5539,140.72,140.69,3.67932]
[1727908824013,17.06,140.75,140.69,3.67932]
[1727908824815,3.5538,140.72,140.69,3.67932]
[1727908825501,3.5539,140.71,140.69,3.67932]
[1727908827609,3.5535,140.73,140.71,3.5539]
[1727908831411,3.5535,140.73,140.69,0.12502]
[1727908831712,3.5535,140.73,140.7,3.554]
[1727908834312,23.0,140.77,140.69,0.12502]
[1727908834502,3.5532,140.74,140.71,3.5538]
[1727908834905,3.5541,140.71,140.69,0.12502]
[1727908835117,5.94,140.77,140.69,0.12502]
[1727908835118,17.06,140.75,140.69,0.12502]
[1727908835411,3.5541,140.7,140.69,0.12502]
[1727908836119,3.5554,140.65,140.64,7.15007112]
[1727908836331,17.06,140.68,140.64,7.15007112]
[1727908836509,5.94,140.69,140.63,0.12502]
[1727908836707,3.555,140.67,140.64,10.70579129]
[1727908837023,5.94,140.71,140.65,7.14986799]
[1727908837221,5.94,140.71,140.63,17.18502]
[1727908837515,3.5548,140.68,140.65,3.5552]
[1727908837710,5.94,140.71,140.63,17.18502]
[1727908837915,5.94,140.71,140.64,7.14951947]
[1727908838119,5.94,140.71,140.63,17.18502]
[1727908838418,5.94,140.71,140.64,7.14951946]
[1727908838623,5.94,140.71,140.65,7.14951946]
[1727908838923,1.3886,140.73,140.68,17.06]
[1727908839119,1.3791,140.74,140.68,17.06]
[1727908839315,1.3791,140.74,140.69,5.94]
[1727908839815,3.5535,140.73,140.69,5.94]
[1727908840121,5.94,140.76,140.69,5.94]
[1727908840321,5.94,140.76,140.7,3.5541]
[1727908840322,3.5535,140.73,140.7,3.5541]
[1727908841125,3.5533,140.74,140.71,3.5539]
[1727908841421,8.6068,140.78,140.7,17.06]
[1727908841621,8.6068,140.78,140.71,7.14864408]
[1727908841823,3.5528,140.76,140.73,3.5532]
[1727908842323,3.67802,140.75,140.72,3.5536]
[1727908842822,0.12502,140.75,140.7,17.06]
[1727908843023,0.12502,140.75,140.73,3.5534]
[1727908843210,0.12502,140.75,140.7,17.06]
[1727908843413,0.12502,140.75,140.71,7.14842291]
[1727908843625,3.67812,140.75,140.71,3.5538]
[1727908843838,0.12502,140.75,140.71,3.5538]
[1727908844628,3.5532,140.74,140.71,3.5538]
[1727908844828,0.12502,140.75,140.72,3.5534]
[1727908845312,3.67802,140.75,140.72,3.5534]
[1727908846231,3.5532,140.74,140.72,3.5534]
[1727908847319,0.12502,140.75,140.72,17.06]
[1727908847518,0.12502,140.81,140.73,22.98]
[1727908847818,0.12502,140.81,140.73,8.5644]
[1727908848023,0.12502,140.81,140.77,17.06]
[1727908848221,0.12502,140.81,140.77,22.98]
[1727908848426,0.12502,140.81,140.79,17.06]
[1727908848725,0.12502,140.81,140.79,20.6118]
[1727908849217,0.12502,140.81,140.8,3.5516]
[1727908852030,0.12502,140.81,140.8,7.12572188]
[1727908853622,0.12502,140.81,140.8,3.5516]
[1727908854031,0.12502,140.81,140.77,22.98]
[1727908854635,0.12502,140.81,140.8,3.5516]
[1727908857236,0.12502,140.81,140.8,7.02175411]
[1727908857431,0.12502,140.81,140.8,3.5516]
[1727908858940,0.12502,140.81,140.79,17.06]
[1727908858941,0.12502,140.81,140.79,20.6118]
[1727908859336,0.12502,140.81,140.79,17.06]
[1727908859641,0.12502,140.81,140.8,3.5516]
[1727908860725,0.12502,140.81,140.8,7.07894133]
[1727908861632,0.12502,140.81,140.8,3.5516]
[1727908865741,0.12502,140.81,140.78,17.06]
[1727908865937,0.12502,140.81,140.76,22.98]
[1727908866236,3.5517,140.8,140.76,22.98]
[1727908866434,0.12502,140.81,140.76,22.98]
[1727908867040,3.5517,140.8,140.77,3.5522]
[1727908872050,0.12502,140.81,140.76,22.98]
[1727908872343,0.12502,140.81,140.74,22.98]
[1727908872547,0.12502,140.81,140.74,5.92]
[1727908872750,17.06,140.8,140.73,5.92]
[1727908873141,2.8096,140.79,140.73,5.92]
[1727908873342,2.8096,140.79,140.73,9.4732]
[1727908873738,2.8096,140.79,140.74,3.553]
[1727908874335,3.5526,140.76,140.73,9.4733]
[1727908874646,2.8096,140.79,140.73,9.4733]
[1727908874850,2.8096,140.79,140.7,24.18358231]
[1727908875045,17.06,140.78,140.71,3.5538]
[1727908875544,2.8096,140.79,140.69,2.84882]
[1727908875545,17.06,140.76,140.69,0.12502]
[1727908875745,17.06,140.76,140.69,6.04502]
[1727908876153,1.4255,140.77,140.69,6.04502]
[1727908876353,1.4255,140.77,140.72,17.06]
[1727908876542,2.8096,140.79,140.74,17.06]
[1727908876744,1.55052,140.81,140.74,20.6307211]
[1727908876943,1.55052,140.81,140.74,17.06]
[1727908877348,3.5518,140.8,140.77,3.5522]
[1727908877544,3.5518,140.8,140.76,17.06]
[1727908877844,0.12502,140.81,140.79,3.5517]
[1727908878050,0.12502,140.81,140.8,17.06]
[1727908879959,0.12502,140.81,140.8,20.6116]
[1727908888649,1.0,140.85,140.83,3.5507]
[1727908890253,1.0,140.85,140.84,20.6106]
[1727908892358,3.5495,140.89,140.84,17.06]
[1727908892569,1.0,140.9,140.86,20.6101]
[1727908892764,1.0,140.9,140.86,29.9982033]
[1727908893162,1.0,140.9,140.89,3.5494]
[1727908894663,1.0,140.92,140.91,3.5488]
[1727908894960,1.0,140.92,140.91,20.6088]
[1727908898263,4.5486,140.92,140.9,5.9]
[1727908898463,1.0,140.92,140.9,5.9]
[1727908898865,1.0,140.92,140.91,3.5488]
[1727908901272,1.0,140.92,140.91,20.6088]
[1727908906684,1.0,140.95,140.91,17.06]
[1727908906979,1.0,140.95,140.94,17.06]
[1727908907274,1.0,140.95,140.94,26.5081]
[1727908908068,1.0,140.95,140.94,30.12683382]
[1727908910085,1.0,140.97,140.96,3.5476]
[1727908910284,1.0,140.97,140.96,20.6076]
[1727908912178,1.0,140.97,140.96,17.06]
[1727908912486,3.548,140.95,140.94,5.9]
[1727908913477,3.5477,140.96,140.94,5.9]
[1727908913673,1.0,140.97,140.94,5.9]
[1727908914178,3.5477,140.96,140.94,5.9]
[1727908914382,1.0,140.97,140.94,9.4481]
[1727908914577,1.0,140.97,140.94,5.9]
[1727908914982,1.0,140.97,140.95,20.6077]
[1727908920183,4.5473,140.97,140.95,20.6077]
[1727908920396,1.0,140.97,140.95,17.06]
[1727908921388,3.5476,140.96,140.95,17.06]
[1727908921588,1.0,140.97,140.93,5.9]
[1727908921891,3.548,140.95,140.93,5.9]
[1727908922481,3.548,140.95,140.93,9.4482]
[1727908923984,1.0,140.97,140.93,5.9]
[1727908924187,1.0,140.97,140.94,3.548]
[1727908925087,3.5477,140.96,140.94,3.548]
[1727908927798,3.5477,140.96,140.95,10.9]
[1727908932492,1.0,140.97,140.95,10.9]
[1727908932692,4.5475,140.97,140.95,14.4477]
[1727908934595,4.5475,140.97,140.93,5.9]
[1727908934596,1.0,140.97,140.94,3.47299325]
[1727908934792,1.0,140.97,140.96,14.4476]
[1727908935296,0.12502,140.99,140.98,3.5471]
[1727908935502,0.12502,140.99,140.98,14.4471]
[1727908935896,1.12518,141.0,140.99,3.5468]
[1727908936100,1.12518,141.0,140.99,14.4468]
[1727908936507,1.12518,141.0,140.98,3.5469]
[1727908936802,1.12518,141.0,140.99,10.9]
[1727908937197,1.12518,141.0,140.99,14.4468]
[1727908940105,1.12518,141.0,140.99,10.9]
[1727908940300,1.12518,141.0,140.99,16.78]
[1727908941998,1.12518,141.0,140.99,20.3268]
[1727908945701,1.0,141.02,140.99,16.78]
[1727908946008,1.0,141.02,141.01,10.9]
[1727908947105,1.0,141.02,141.01,14.4463]
[1727908947608,1.0,141.02,140.99,5.88]
[1727908947609,4.5462,141.02,141.0,3.5465]
[1727908947911,1.0,141.02,141.0,10.9]
[1727908948406,11.9,141.02,140.97,10.9]
[1727908948605,1.3878,141.01,140.97,10.9]
[1727908949506,3.5466,141.0,140.97,10.9]
[1727908950107,1.3878,141.01,140.94,3.548]
[1727908950305,13.564,141.0,140.95,10.9]
[1727908950512,13.564,141.0,140.96,10.9]
[1727908950513,2.664,141.0,140.96,10.9]
[1727908951309,3.547,140.99,140.97,10.9]
[1727908951515,13.564,141.0,140.96,10.9]
[1727908951816,3.5475,140.97,140.96,10.9]
[1727908953902,13.564,141.0,140.96,10.9]
[1727908954104,3.5469,140.99,140.97,10.9]
[1727908954299,2.664,141.0,140.97,10.9]
[1727908954514,3.5468,140.99,140.97,10.9]
[1727908956015,12.02017937,141.0,140.93,0.12502]
[1727908956210,10.9,140.97,140.93,11.02502]
[1727908956512,8.544,141.0,140.93,0.12502]
[1727908956513,10.9,140.96,140.93,0.12502]
[1727908956816,16.78,140.96,140.93,0.12502]
[1727908957118,10.9,140.94,140.87,9.55472]
[1727908957301,10.9,140.93,140.88,10.9]
[1727908957502,5.88,140.92,140.87,0.12502]
[1727908957713,7.2452,140.92,140.87,0.12502]
[1727908958228,3.549,140.91,140.87,0.12502]
[1727908958509,7.2452,140.92,140.87,0.12502]
[1727908959105,3.5495,140.89,140.87,0.12502]
[1727908960113,1.3652,140.92,140.87,0.12502]
[1727908960322,17.04,140.98,140.88,17.04]
[1727908960506,1.4004,140.96,140.9,17.04]
[1727908961713,3.5486,140.93,140.9,20.5889]
[1727908962113,1.3529,140.98,140.9,17.04]
[1727908962314,0.12502,140.99,140.96,17.04]
[1727908962621,0.12502,140.99,140.96,20.5875]
[1727908963315,0.12502,140.99,140.97,3.5473]
[1727908964017,0.12502,140.99,140.96,20.5875]
[1727908964219,0.12502,140.99,140.96,17.04]
[1727908964220,3.67202,140.99,140.96,17.04]
[1727908965514,3.5473,140.97,140.96,17.04]
[1727908965717,0.12502,140.99,140.94,7.1321722]
[1727908966017,0.12502,140.99,140.93,17.04]
[1727908966018,5.88,140.98,140.93,17.04]
[1727908967121,3.5478,140.96,140.93,17.04]
[1727908968012,5.88,140.98,140.93,17.04]
[1727908968322,17.04,140.97,140.9,7.13454708]
[1727908968524,18.3641,140.97,140.88,30.05454708]
[1727908968819,1.3241,140.97,140.9,17.04]
[1727908969024,1.3241,140.97,140.88,22.92]
[1727908969325,18.3641,140.97,140.89,7.13527112]
[1727908969520,18.3641,140.97,140.88,17.04]
[1727908970112,3.5485,140.93,140.89,3.5492]
[1727908970523,18.3641,140.97,140.89,3.5492]
[1727908970717,3.5487,140.92,140.89,3.5492]
[1727908971115,18.3641,140.97,140.88,20.5894]
[1727908971315,3.5487,140.92,140.88,20.5894]
[1727908972121,3.5487,140.92,140.89,3.5492]
[1727908974024,9.4283,140.94,140.91,3.5487]
[1727908974520,3.5483,140.94,140.91,3.5487]
[1727908976827,5.88,140.96,140.89,10.68311845]
[1727908976828,3.5487,140.92,140.89,10.68311845]
[1727908977325,3.548,140.95,140.9,17.04]
[1727908977528,3.548,140.95,140.92,3.5486]
[1727908980228,7.2041,140.97,140.92,3.5486]
[1727908980421,1.3241,140.97,140.93,3.5482]
[1727908980731,3.5472,140.98,140.94,17.04]
[1727908981128,3.5472,140.98,140.95,3.5477]
[1727908981834,6.00502,140.99,140.92,17.04]
[1727908982128,26.63997671,140.99,140.91,5.88]
[1727908982327,3.5483,140.93,140.9,27.72140303]
[1727908982631,1.3506,140.98,140.9,24.17250303]
[1727908983732,3.548,140.95,140.92,3.5484]
[1727908984118,1.3506,140.98,140.92,3.5484]
[1727908984333,3.5481,140.94,140.92,3.5484]
[1727908984730,1.3506,140.98,140.92,3.5484]
[1727908985832,3.5477,140.96,140.93,3.5483]
[1727908986034,1.3506,140.98,140.92,17.04]
[1727908986431,3.5474,140.97,140.94,3.548]
[1727908986834,1.3506,140.98,140.92,17.04]
[1727908987034,3.5476,140.96,140.93,3.5481]
[1727908987236,6.00502,140.99,140.94,17.04]
[1727908987634,6.00502,140.99,140.95,3.5477]
[1727908988333,3.5475,140.97,140.94,20.588]
[1727908993238,17.16502,140.99,140.92,22.92]
[1727908993439,18.58362,140.99,140.92,5.88]
[1727908993642,18.58362,140.99,140.91,7.13263712]
[1727908994138,18.58362,140.99,140.91,24.17263712]
[1727908994334,3.5475,140.97,140.94,3.548]
[1727908994737,1.54362,140.99,140.93,17.04]
[1727908994938,3.5472,140.98,140.95,20.5877]
[1727908996343,3.5477,140.96,140.93,26.4483]
[1727908998347,3.5477,140.96,140.94,3.548]
[1727909000142,3.5475,140.97,140.95,3.5478]
[1727909000350,0.12502,140.99,140.95,17.04]
[1727909001048,3.5472,140.98,140.95,20.5877]
[1727909001750,0.12502,140.99,140.97,3.5473]
[1727909001949,0.12502,140.99,140.95,17.04]
[1727909002148,0.12502,140.99,140.97,3.5472]
[1727909003154,0.12502,140.99,140.98,3.5471]
[1727909003355,1.0,141.02,140.97,22.9]
[1727909003556,1.0,141.02,141.01,17.04]
[1727909005848,1.0,141.02,141.01,20.5863]
[1727909007049,3.5464,141.01,140.99,17.04]
[1727909007354,1.0,141.02,140.97,22.9]
[1727909007852,4.5463,141.02,140.99,3.5468]
[1727909008243,1.0,141.02,140.99,3.5468]
[1727909009153,3.5465,141.01,140.97,20.5872]
[1727909009360,1.0,141.02,140.97,20.5872]
[1727909009545,1.0,141.02,140.95,24.16969075]
[1727909009752,1.0,141.02,140.95,17.04]
[1727909009949,1.0,141.02,140.95,7.1296912]
[1727909009950,2.7331,141.01,140.95,7.1296912]
[1727909010157,4.088,141.01,140.94,7.13019609]
[1727909010766,3.5472,140.98,140.95,3.5477]
[1727909011756,3.5474,140.97,140.95,3.5477]
[1727909011966,3.5474,140.97,140.94,10.67809609]
[1727909012354,3.5474,140.97,140.94,17.81043956]
[1727909013658,3.5474,140.97,140.95,3.5478]
[1727909015461,3.5472,140.98,140.95,3.5478]
[1727909015859,4.088,141.01,140.94,7.13572488]
[1727909016064,17.04,141.0,140.93,0.12502]
[1727909016266,3.62080205,140.99,140.93,0.12502]
[1727909016568,5.86,140.98,140.93,0.12502]
[1727909017272,5.86,140.98,140.94,17.04]
[1727909017273,9.4072,140.98,140.94,17.04]
[1727909017460,3.5472,140.98,140.95,3.5476]
[1727909018072,4.088,141.01,140.95,17.04]
[1727909018261,6.86,141.02,140.95,17.04]
[1727909018771,3.5465,141.01,140.98,3.5471]
[1727909018959,6.86,141.02,140.97,17.04]
[1727909019670,6.86,141.02,140.95,22.9]
[1727909020063,3.5475,140.97,140.95,22.9]
[1727909020263,3.5475,140.97,140.95,17.04]
[1727909020657,3.5476,140.96,140.93,20.71322]
[1727909020861,23.9,141.02,140.93,17.16502]
[1727909021472,3.5475,140.97,140.94,3.5479]
[1727909023269,3.5475,140.97,140.93,17.16502]
[1727909023573,3.5475,140.97,140.95,3.5478]
[1727909025375,3.5472,140.98,140.96,3.5475]
[1727909028376,6.86,141.02,140.97,3.5473]
[1727909028975,3.5468,141.0,140.97,3.5473]
[1727909029178,6.86,141.02,140.97,3.5473]
[1727909029382,6.86,141.02,140.96,3.5475]
[1727909030278,3.5469,140.99,140.96,3.5475]
[1727909031275,6.86,141.02,140.95,17.04]
[1727909031492,3.5467,141.0,140.97,3.5472]
[1727909032379,6.86,141.02,140.95,17.04]
[1727909032571,23.9,141.02,140.94,3.548]
[1727909033084,3.5475,140.97,140.94,3.548]
[1727909033888,23.9,141.02,140.93,17.16502]
[1727909034083,6.86,141.02,140.96,3.5476]
[1727909034477,3.547,140.99,140.96,3.5476]
[1727909035777,1.0,141.02,140.97,17.04]
[1727909036489,3.5465,141.01,140.98,3.547]
[1727909039988,3.5465,141.01,140.99,3.5468]
[1727909040174,1.0,141.02,140.99,3.5468]
[1727909040377,1.0,141.02,140.99,17.04]
[1727909040581,1.0,141.02,141.01,20.5863]
[1727909043789,1.0,141.02,141.0,9.4065]
[1727909044381,1.0,141.02,141.01,3.5463]
[1727909046193,1.0,141.02,141.0,5.86]
[1727909046390,1.0,141.02,140.99,17.04]
[1727909046595,1.0,141.02,140.99,22.9]
[1727909047290,3.5465,141.01,140.99,20.5866]
[1727909048297,4.5462,141.02,141.0,3.5466]
[1727909048792,1.0,141.02,141.01,17.04]
[1727909049984,1.0,141.02,141.01,20.5863]
[1727909051699,1.12502,141.05,141.01,17.04]
[1727909051904,4.67052,141.05,141.03,17.04]
[1727909053398,4.67052,141.05,141.03,20.5858]
[1727909056511,1.12502,141.05,141.04,17.04]
[1727909056812,1.12502,141.05,141.04,20.5856]
[1727909060202,1.12502,141.05,140.94,4.82308325]
[1727909060395,18.16502,141.05,140.96,7.12657131]
[1727909060597,1.3156,141.04,140.96,17.04]
[1727909060795,1.3156,141.04,140.97,7.12800918]
[1727909061000,1.3156,141.04,140.96,17.04]
[1727909061208,1.3156,141.04,140.96,24.17062144]
[1727909061413,1.3156,141.04,140.96,20.5874]
[1727909061414,3.5467,141.0,140.96,20.5874]
[1727909061607,1.3156,141.04,140.96,20.5874]
[1727909061608,1.3156,141.04,140.96,17.04]
[1727909062107,3.5465,141.01,140.97,3.5472]
[1727909062513,3.5465,141.01,140.96,17.04]
[1727909062701,3.5463,141.02,140.98,3.5469]
[1727909063613,3.5463,141.01,140.98,3.5469]
[1727909064305,1.3156,141.04,140.97,17.04]
[1727909064509,1.3156,141.04,140.99,17.04]
[1727909065112,3.5462,141.02,140.99,20.5867]
[1727909068018,3.5462,141.02,141.0,3.5466]
[1727909070712,1.3156,141.04,141.0,3.5466]
[1727909071020,3.546,141.03,141.0,3.5466]
[1727909071418,3.5461,141.02,141.0,3.5466]
[1727909078118,3.5465,141.01,140.98,3.5469]
[1727909078522,1.3156,141.04,140.96,17.04]
[1727909078724,17.04,141.03,140.94,24.2313]
[1727909079018,17.04,141.01,140.95,7.12956365]
[1727909079224,3.5476,140.96,140.94,3.5479]
[1727909079521,10.9,140.99,140.94,10.9]
[1727909080324,3.5472,140.98,140.95,3.5478]
[1727909080824,10.9,140.99,140.95,3.5478]
[1727909080825,3.5474,140.97,140.95,3.5478]
[1727909082223,3.5475,140.97,140.94,3.5481]
[1727909085514,3.5475,140.97,140.95,3.5478]
[1727909086217,5.84,141.01,140.98,3.547]
[1727909086520,5.84,141.01,140.98,17.04]
[1727909087120,5.84,141.01,140.99,3.5467]
[1727909087320,5.84,141.01,140.98,17.04]
[1727909087728,2.747,141.04,140.99,17.04]
[1727909088929,6.2927,141.04,141.01,3.5461]
[1727909097334,2.747,141.04,140.99,17.04]
[1727909097634,2.747,141.04,140.97,17.04]
[1727909098429,3.5462,141.02,140.99,3.5468]
[1727909098831,2.747,141.04,140.97,17.04]
[1727909098832,3.546,141.03,141.0,3.5464]
[1727909100223,3.5461,141.02,141.0,3.5464]
[1727909101528,6.96502,141.05,141.01,10.89]
[1727909102435,3.546,141.03,141.01,10.89]
[1727909102636,10.89,141.03,140.99,10.89]
[1727909102832,10.89,141.01,140.93,0.12502]
[1727909103027,10.89,140.98,140.97,7.13362586]
[1727909103228,10.89,140.98,140.94,7.13362586]
[1727909103533,10.89,140.98,140.93,11.01502]
[1727909103534,3.5478,140.96,140.93,14.56332]